bitfinex/quotes_BTCUSD_20251009
["timestamp","ask_amount","ask_price","bid_price","bid_amount"]
[1759999719412,0.16460905,121500.0,121490.0,0.64821139]
[1759999719625,0.62102055,121500.0,121490.0,0.2410975]
[1759999719833,0.62102055,121500.0,121490.0,0.0957229]
[1759999720047,0.62102055,121500.0,121490.0,0.3298029]
[1759999720264,0.71937055,121500.0,121490.0,0.0101229]
[1759999720682,0.71937055,121500.0,121490.0,0.1674829]
[1759999720886,0.62102055,121500.0,121490.0,0.1674829]
[1759999721832,0.71937055,121500.0,121490.0,0.1674829]
[1759999722441,0.62102055,121500.0,121490.0,0.1674829]
[1759999724806,0.16460905,121500.0,121490.0,0.0101229]
[1759999725024,0.16460905,121500.0,121490.0,0.25959161]
[1759999725234,0.16460905,121500.0,121490.0,0.2442029]
[1759999725797,0.16460905,121500.0,121490.0,0.0101229]
[1759999726000,0.16460905,121500.0,121490.0,0.2442029]
[1759999726292,0.16460905,121500.0,121490.0,0.0101229]
[1759999726444,0.16460905,121500.0,121490.0,0.2442029]
[1759999728920,0.15798834,121500.0,121490.0,0.2442029]
[1759999729138,0.17852052,121500.0,121490.0,0.2442029]
[1759999732644,0.24503052,121500.0,121490.0,0.0101229]
[1759999732852,0.61711984,121500.0,121490.0,0.2442029]
[1759999733484,0.27379834,121500.0,121490.0,0.2442029]
[1759999733699,0.15798834,121500.0,121490.0,0.2442029]
[1759999733919,0.17852052,121500.0,121490.0,0.2442029]
[1759999736235,0.24300052,121500.0,121490.0,0.0101229]
[1759999736427,0.15798834,121500.0,121490.0,0.2442029]
[1759999736627,0.17852052,121500.0,121490.0,0.2442029]
[1759999737082,0.17852052,121500.0,121490.0,0.0101229]
[1759999737304,0.17852052,121500.0,121490.0,0.3298029]
[1759999738724,0.24300052,121500.0,121490.0,0.3298029]
[1759999738943,0.71107984,121500.0,121490.0,0.0101229]
[1759999739155,1.05107984,121500.0,121490.0,0.0101229]
[1759999739370,1.05107984,121500.0,121490.0,0.0264829]
[1759999739589,1.05107984,121500.0,121490.0,0.0101229]
[1759999739800,1.1342019,121500.0,121490.0,0.0101229]
[1759999740206,1.39295894,121500.0,121490.0,0.0101229]
[1759999740409,1.47295574,121500.0,121490.0,0.0101229]
[1759999741359,1.50314764,121500.0,121490.0,1e-08]
[1759999741564,1.84642914,121500.0,121490.0,1e-08]
[1759999742367,1.84646914,121500.0,121490.0,1e-08]
[1759999742554,1.61238914,121500.0,121490.0,1e-08]
[1759999742755,1.84646914,121500.0,121490.0,1e-08]
[1759999744324,1.93206914,121500.0,121490.0,1e-08]
[1759999744955,1.69798914,121500.0,121490.0,1e-08]
[1759999745160,1.93206914,121500.0,121490.0,1e-08]
[1759999746336,1.61238914,121500.0,121490.0,1e-08]
[1759999746543,1.58874764,121500.0,121490.0,1e-08]
[1759999747436,1.93206914,121500.0,121490.0,1e-08]
[1759999747846,1.61238914,121500.0,121490.0,1e-08]
[1759999748063,1.93206914,121500.0,121490.0,1e-08]
[1759999748560,1.61238914,121500.0,121490.0,1e-08]
[1759999748763,1.93206914,121500.0,121490.0,1e-08]
[1759999749405,1.84646914,121500.0,121490.0,1e-08]
[1759999749619,1.93206914,121500.0,121490.0,1e-08]
[1759999750027,2.47262072,121500.0,121490.0,1e-08]
[1759999750235,2.79230072,121500.0,121490.0,1e-08]
[1759999750871,2.01886343,121500.0,121490.0,1e-08]
[1759999751818,1.69918343,121500.0,121490.0,1e-08]
[1759999752028,2.01886343,121500.0,121490.0,1e-08]
[1759999753073,2.79230072,121500.0,121490.0,1e-08]
[1759999753970,2.55822072,121500.0,121490.0,1e-08]
[1759999754177,2.87906072,121500.0,121490.0,1e-08]
[1759999756203,2.64498072,121500.0,121490.0,1e-08]
[1759999756413,2.87906072,121500.0,121490.0,1e-08]
[1759999756567,2.79346072,121500.0,121490.0,1e-08]
[1759999756792,2.87906072,121500.0,121490.0,1e-08]
[1759999757017,1.33218614,121500.0,121490.0,1e-08]
[1759999757219,2.87906072,121500.0,121490.0,1e-08]
[1759999762318,2.89428538,121500.0,121490.0,1e-08]
[1759999762739,2.66020538,121500.0,121490.0,1e-08]
[1759999762944,1.72001496,121500.0,121490.0,1e-08]
[1759999763129,1.95409496,121500.0,121490.0,1e-08]
[1759999764068,2.72753225,121500.0,121490.0,1e-08]
[1759999764268,0.94657767,121500.0,121490.0,1e-08]
[1759999764512,2.80752905,121500.0,121490.0,1e-08]
[1759999765120,2.80753826,121500.0,121490.0,1e-08]
[1759999770380,2.48785826,121500.0,121490.0,1e-08]
[1759999770611,3.25287826,121500.0,121490.0,1e-08]
[1759999771607,3.26052516,121500.0,121490.0,1e-08]
[1759999772751,3.02644516,121500.0,121490.0,1e-08]
[1759999772916,3.26048516,121500.0,121490.0,1e-08]
[1759999774125,3.34714516,121500.0,121490.0,1e-08]
[1759999775764,0.16467682,121450.0,121440.0,0.06677123]
[1759999775959,0.42248925,121450.0,121440.0,0.06681792]
[1759999776346,0.48239925,121450.0,121440.0,4.669e-05]
[1759999776547,0.52788925,121450.0,121440.0,0.31972669]
[1759999776948,0.16467682,121450.0,121440.0,0.08568669]
[1759999777182,0.42248925,121450.0,121440.0,0.31972669]
[1759999778160,0.42248925,121450.0,121440.0,0.08568669]
[1759999778360,0.52788925,121450.0,121440.0,0.31972669]
[1759999778722,0.36619682,121450.0,121440.0,0.31972669]
[1759999778898,0.62400925,121450.0,121440.0,0.31972669]
[1759999781055,0.62400925,121450.0,121440.0,4.669e-05]
[1759999781056,1.2313668,121450.0,121440.0,4.669e-05]
[1759999781264,1.22182168,121450.0,121440.0,4.669e-05]
[1759999781484,1.22182168,121450.0,121440.0,0.00347768]
[1759999781735,1.24654682,121450.0,121440.0,0.00347768]
[1759999795550,0.73092196,121450.0,121440.0,0.00347768]
[1759999795756,1.24654682,121450.0,121440.0,0.00347768]
[1759999796550,1.66747811,121450.0,121440.0,0.00347768]
[1759999796840,1.64366568,121450.0,121440.0,0.00347768]
[1759999797503,1.40966568,121450.0,121440.0,0.00347768]
[1759999797651,1.56366888,121450.0,121440.0,0.00347768]
[1759999799484,1.32966888,121450.0,121440.0,0.00347768]
[1759999799657,1.56366888,121450.0,121440.0,0.00347768]
[1759999800438,1.82148131,121450.0,121440.0,0.00347768]
[1759999800642,1.90147811,121450.0,121440.0,0.00347768]
[1759999801054,1.66747811,121450.0,121440.0,0.00347768]
[1759999801257,1.69763001,121450.0,121440.0,1e-08]
[1759999801467,1.93163001,121450.0,121440.0,1e-08]
[1759999801899,1.95544244,121450.0,121440.0,1e-08]
[1759999802112,2.67148629,121450.0,121440.0,1e-08]
[1759999802542,2.73182064,121450.0,121440.0,1e-08]
[1759999802746,1.95838335,121450.0,121440.0,1e-08]
[1759999803775,2.04402335,121450.0,121440.0,1e-08]
[1759999804409,1.27058606,121450.0,121440.0,1e-08]
[1759999804615,2.04402335,121450.0,121440.0,1e-08]
[1759999804826,2.81746064,121450.0,121440.0,1e-08]
[1759999805040,2.04402335,121450.0,121440.0,1e-08]
[1759999805391,2.81746064,121450.0,121440.0,1e-08]
[1759999805602,2.04402335,121450.0,121440.0,1e-08]
[1759999806153,2.58346064,121450.0,121440.0,1e-08]
[1759999806369,2.84246063,121450.0,121440.0,1e-08]
[1759999806578,2.94246062,121450.0,121440.0,1e-08]
[1759999806805,2.96381772,121450.0,121440.0,1e-08]
[1759999807681,2.83872408,121450.0,121440.0,1e-08]
[1759999807882,3.07272408,121450.0,121440.0,1e-08]
[1759999808046,2.85396893,121450.0,121440.0,1e-08]
[1759999808251,3.08796893,121450.0,121440.0,1e-08]
[1759999808941,3.00130893,121450.0,121440.0,1e-08]
[1759999809354,3.00892573,121450.0,121440.0,1e-08]
[1759999809769,2.66703937,121450.0,121440.0,1e-08]
[1759999809986,2.02108885,121450.0,121440.0,1e-08]
[1759999810212,2.21540885,121450.0,121440.0,1e-08]
[1759999810434,1.68708886,121450.0,121440.0,1e-08]
[1759999810644,2.44940885,121450.0,121440.0,1e-08]
[1759999811062,2.34940886,121450.0,121440.0,1e-08]
[1759999811308,2.89470885,121450.0,121440.0,1e-08]
[1759999811506,2.88709205,121450.0,121440.0,1e-08]
[1759999812266,2.65309205,121450.0,121440.0,1e-08]
[1759999812478,2.14477525,121450.0,121440.0,1e-08]
[1759999812694,2.02441526,121450.0,121440.0,1e-08]
[1759999812897,2.36441526,121450.0,121440.0,1e-08]
[1759999813352,1.18907852,121450.0,121440.0,1e-08]
[1759999813566,1.27471852,121450.0,121440.0,1e-08]
[1759999813789,0.87024359,121450.0,121440.0,1e-08]
[1759999813998,1.10424359,121450.0,121440.0,1e-08]
[1759999814177,1.47439549,121450.0,121440.0,1e-08]
[1759999814408,1.12460359,121450.0,121440.0,1e-08]
[1759999814617,1.35860359,121450.0,121440.0,1e-08]
[1759999814815,1.46875229,121450.0,121440.0,1e-08]
[1759999815495,1.57889287,121450.0,121440.0,1e-08]
[1759999815698,1.81289287,121450.0,121440.0,1e-08]
[1759999816924,1.57889287,121450.0,121440.0,1e-08]
[1759999817069,1.81289287,121450.0,121440.0,1e-08]
[1759999817268,1.73289607,121450.0,121440.0,1e-08]
[1759999817440,0.81061491,121450.0,121440.0,1e-08]
[1759999817672,1.38875549,121450.0,121440.0,1e-08]
[1759999818080,1.49889607,121450.0,121440.0,1e-08]
[1759999818507,1.73289607,121450.0,121440.0,1e-08]
[1759999818713,1.81289287,121450.0,121440.0,1e-08]
[1759999819725,1.73289607,121450.0,121440.0,1e-08]
[1759999821695,1.38875549,121450.0,121440.0,1e-08]
[1759999821909,1.73289607,121450.0,121440.0,1e-08]
[1759999822474,1.49889607,121450.0,121440.0,1e-08]
[1759999822724,1.73289607,121450.0,121440.0,1e-08]
[1759999822953,1.81289287,121450.0,121440.0,1e-08]
[1759999823730,1.12461171,121450.0,121440.0,1e-08]
[1759999823949,1.89955287,121450.0,121440.0,1e-08]
[1759999824173,1.81289287,121450.0,121440.0,1e-08]
[1759999824976,1.59415131,121450.0,121440.0,1e-08]
[1759999825378,2.17229189,121450.0,121440.0,1e-08]
[1759999825557,2.34852504,121450.0,121440.0,1e-08]
[1759999825918,2.39793504,121450.0,121440.0,1e-08]
[1759999826118,2.46014017,121450.0,121440.0,1e-08]
[1759999827021,2.43789381,121450.0,121440.0,1e-08]
[1759999827669,2.86621381,121450.0,121440.0,1e-08]
[1759999829954,2.81680381,121450.0,121440.0,1e-08]
[1759999831055,2.73120381,121450.0,121440.0,1e-08]
[1759999831263,2.37274324,121450.0,121440.0,1e-08]
[1759999831522,2.47274323,121450.0,121440.0,1e-08]
[1759999831941,2.58288381,121450.0,121440.0,1e-08]
[1759999832145,2.81688381,121450.0,121440.0,1e-08]
[1759999833452,1.78898613,121450.0,121440.0,1e-08]
[1759999833621,2.35138614,121450.0,121440.0,1e-08]
[1759999834205,2.43804662,121450.0,121440.0,1e-08]
[1759999834799,2.30404661,121450.0,121440.0,1e-08]
[1759999835002,2.53804661,121450.0,121440.0,1e-08]
[1759999838449,2.37713569,121450.0,121440.0,1e-08]
[1759999840283,1.30522381,121450.0,121440.0,1e-08]
[1759999840513,1.2109341,121450.0,121440.0,1e-08]
[1759999840681,1.4449341,121450.0,121440.0,1e-08]
[1759999840857,1.38272897,121450.0,121440.0,1e-08]
[1759999841213,1.83287767,121450.0,121440.0,1e-08]
[1759999841428,1.49587767,121450.0,121440.0,1e-08]
[1759999841631,1.60187767,121450.0,121440.0,1e-08]
[1759999841834,1.83587767,121450.0,121440.0,1e-08]
[1759999842337,1.82061875,121450.0,121440.0,1e-08]
[1759999843698,1.92061875,121450.0,121440.0,1e-08]
[1759999844115,1.68661875,121450.0,121440.0,1e-08]
[1759999844308,1.93587965,121450.0,121440.0,1e-08]
[1759999844933,1.99865281,121450.0,121440.0,1e-08]
[1759999846255,2.2418121,121450.0,121440.0,1e-08]
[1759999846471,2.4758121,121450.0,121440.0,1e-08]
[1759999846681,2.57581209,121450.0,121440.0,1e-08]
[1759999847322,2.58344348,121450.0,121440.0,1e-08]
[1759999847533,2.2393029,121450.0,121440.0,1e-08]
[1759999848355,2.0053029,121450.0,121440.0,1e-08]
[1759999848575,1.9196229,121450.0,121440.0,1e-08]
[1759999848792,2.46062581,121450.0,121440.0,1e-08]
[1759999849284,2.3266658,121450.0,121440.0,1e-08]
[1759999849499,2.3316758,121450.0,121440.0,1e-08]
[1759999849912,2.5656358,121450.0,121440.0,1e-08]
[1759999851191,2.90977638,121450.0,121440.0,1e-08]
[1759999852458,2.90978396,121450.0,121440.0,1e-08]
[1759999852892,2.93114106,121450.0,121440.0,1e-08]
[1759999853358,2.92350209,121450.0,121440.0,1e-08]
[1759999853558,2.93114191,121450.0,121440.0,1e-08]
[1759999854336,2.92350209,121450.0,121440.0,1e-08]
[1759999856383,2.92352364,121450.0,121440.0,1e-08]
[1759999857436,1.91702306,121450.0,121440.0,1e-08]
[1759999857636,2.49942626,121450.0,121440.0,1e-08]
[1759999858047,1.83702626,121450.0,121440.0,1e-08]
[1759999858224,2.49942626,121450.0,121440.0,1e-08]
[1759999858631,2.47806916,121450.0,121440.0,1e-08]
[1759999858966,2.24410916,121450.0,121440.0,1e-08]
[1759999859194,2.55806596,121450.0,121440.0,1e-08]
[1759999860828,2.90221639,121450.0,121440.0,1e-08]
[1759999861881,2.68961349,121450.0,121440.0,1e-08]
[1759999862084,2.92357349,121450.0,121440.0,1e-08]
[1759999862596,2.99522985,121450.0,121440.0,1e-08]
[1759999862766,3.0028778,121450.0,121440.0,1e-08]
[1759999863780,2.7689178,121450.0,121440.0,1e-08]
[1759999864201,3.0028778,121450.0,121440.0,1e-08]
[1759999864769,2.9998778,121450.0,121440.0,1e-08]
[1759999864966,3.0028778,121450.0,121440.0,1e-08]
[1759999866828,3.0078778,121450.0,121440.0,1e-08]
[1759999867068,3.0028778,121450.0,121440.0,1e-08]
[1759999867203,2.98063144,121450.0,121440.0,1e-08]
[1759999867405,2.98563144,121450.0,121440.0,1e-08]
[1759999871948,0.16475821,121390.0,121380.0,0.06619503]
[1759999872176,1.48160643,121390.0,121380.0,0.06669947]
[1759999872387,1.48160643,121390.0,121380.0,0.00050444]
[1759999872620,1.71556643,121390.0,121380.0,0.00050444]
[1759999872824,1.74030664,121390.0,121380.0,0.00050444]
[1759999873978,1.74130664,121390.0,121380.0,0.00050444]
[1759999874232,1.50734664,121390.0,121380.0,0.00050444]
[1759999874450,1.74130664,121390.0,121380.0,0.00050444]
[1759999876495,1.82975556,121390.0,121380.0,0.00050444]
[1759999876722,1.59579556,121390.0,121380.0,0.00050444]
[1759999877186,1.82975556,121390.0,121380.0,0.00050444]
[1759999877643,1.74975876,121390.0,121380.0,0.00359184]
[1759999878080,1.54595066,121390.0,121380.0,0.00359184]
[1759999878297,1.0052545,121390.0,121380.0,0.00359184]
[1759999878533,1.77991066,121390.0,121380.0,0.00359184]
[1759999878968,1.77891066,121390.0,121380.0,0.00359184]
[1759999879182,1.85890746,121390.0,121380.0,0.00359184]
[1759999880307,1.78091066,121390.0,121380.0,0.00359184]
[1759999880908,1.54695066,121390.0,121380.0,0.00359184]
[1759999881190,1.78091066,121390.0,121380.0,0.00359184]
[1759999882693,1.54695066,121390.0,121380.0,0.00359184]
[1759999882908,1.78091066,121390.0,121380.0,0.00359184]
[1759999883110,1.54695066,121390.0,121380.0,0.00359184]
[1759999883533,1.84056223,121390.0,121380.0,0.00359184]
[1759999883663,1.78091066,121390.0,121380.0,0.00359184]
[1759999886671,1.54695066,121390.0,121380.0,0.00359184]
[1759999886970,1.78091066,121390.0,121380.0,0.00359184]
[1759999888023,1.54695066,121390.0,121380.0,1e-08]
[1759999888237,1.86090746,121390.0,121380.0,1e-08]
[1759999889431,1.78091066,121390.0,121380.0,1e-08]
[1759999890865,1.54695066,121390.0,121380.0,1e-08]
[1759999891070,1.0062545,121390.0,121380.0,1e-08]
[1759999891319,1.78091066,121390.0,121380.0,1e-08]
[1759999891531,1.54695066,121390.0,121380.0,1e-08]
[1759999891737,1.86090746,121390.0,121380.0,1e-08]
[1759999893012,1.62694746,121390.0,121380.0,1e-08]
[1759999893144,1.86090746,121390.0,121380.0,1e-08]
[1759999894021,1.62694746,121390.0,121380.0,1e-08]
[1759999894226,1.86090746,121390.0,121380.0,1e-08]
[1759999895265,1.0862513,121390.0,121380.0,1e-08]
[1759999895477,1.62694746,121390.0,121380.0,1e-08]
[1759999895672,1.86090746,121390.0,121380.0,1e-08]
[1759999895904,2.40160362,121390.0,121380.0,1e-08]
[1759999896234,1.27944152,121370.0,121360.0,1e-08]
[1759999896443,1.40503358,121370.0,121360.0,0.00032608]
[1759999896644,1.59284228,121370.0,121360.0,1e-08]
[1759999896854,1.82680228,121370.0,121360.0,1e-08]
[1759999897055,1.85154847,121370.0,121360.0,1e-08]
[1759999897711,1.85254847,121370.0,121360.0,1e-08]
[1759999897912,1.85554847,121370.0,121360.0,1e-08]
[1759999898119,1.62158847,121370.0,121360.0,1e-08]
[1759999898280,1.85554847,121370.0,121360.0,1e-08]
[1759999898486,1.62158847,121370.0,121360.0,1e-08]
[1759999898709,1.85554847,121370.0,121360.0,1e-08]
[1759999898862,1.85554847,121370.0,121360.0,0.00102957]
[1759999900054,1.62158847,121370.0,121360.0,0.00102957]
[1759999900273,1.85554847,121370.0,121360.0,0.00102957]
[1759999900599,1.62158847,121370.0,121360.0,0.00102957]
[1759999900815,1.85554847,121370.0,121360.0,0.00102957]
[1759999902434,1.33321785,121370.0,121360.0,0.00102957]
[1759999902641,1.25322105,121370.0,121360.0,0.00102957]
[1759999902786,1.48718105,121370.0,121360.0,0.00102957]
[1759999903810,1.25322105,121370.0,121360.0,0.00102957]
[1759999904232,1.25322105,121370.0,121360.0,0.19781957]
[1759999904233,0.76700408,121370.0,121360.0,0.19781957]
[1759999904448,1.0252228,121370.0,121360.0,0.19781957]
[1759999904656,1.3620228,121370.0,121360.0,0.00102957]
[1759999904860,1.3793128,121370.0,121360.0,0.00102957]
[1759999905507,1.41828044,121370.0,121360.0,0.00102957]
[1759999905926,1.41828044,121370.0,121360.0,0.06139957]
[1759999906130,1.3793128,121370.0,121360.0,0.06139957]
[1759999906632,0.84558536,121370.0,121360.0,0.06139957]
[1759999906844,0.74274536,121370.0,121360.0,0.19781957]
[1759999907069,0.76700408,121370.0,121360.0,0.19781957]
[1759999907894,0.50878536,121370.0,121360.0,0.19781957]
[1759999908053,0.76700408,121370.0,121360.0,0.19781957]
[1759999911501,1.0259828,121370.0,121360.0,0.19781957]
[1759999911756,1.1441628,121370.0,121360.0,0.00102957]
[1759999912594,1.1441628,121370.0,121360.0,0.06139957]
[1759999912960,1.1441628,121370.0,121360.0,0.00102957]
[1759999913161,1.3780828,121370.0,121360.0,0.00102957]
[1759999913382,1.4580796,121370.0,121360.0,0.00102957]
[1759999915063,1.3780828,121370.0,121360.0,0.00102957]
[1759999918511,1.46120486,121370.0,121360.0,0.00102957]
[1759999918736,1.48550358,121370.0,121360.0,0.00102957]
[1759999918972,1.71942358,121370.0,121360.0,0.00102957]
[1759999919869,1.48550358,121370.0,121360.0,0.00102957]
[1759999920106,1.82416627,121370.0,121360.0,0.00102957]
[1759999920361,1.79024627,121370.0,121360.0,0.00102957]
[1759999920581,2.02416627,121370.0,121360.0,0.00102957]
[1759999920806,1.79024627,121370.0,121360.0,0.00102957]
[1759999921037,2.65058243,121370.0,121360.0,1e-08]
[1759999921275,2.68073433,121370.0,121360.0,1e-08]
[1759999921550,2.91465433,121370.0,121360.0,1e-08]
[1759999921780,3.03965431,121370.0,121360.0,1e-08]
[1759999921995,3.14857431,121370.0,121360.0,1e-08]
[1759999922211,3.38249431,121370.0,121360.0,1e-08]
[1759999922422,3.38149431,121370.0,121360.0,1e-08]
[1759999923073,1.17374199,121370.0,121360.0,1e-08]
[1759999923292,3.15165431,121370.0,121360.0,1e-08]
[1759999923724,2.51091816,121370.0,121360.0,1e-08]
[1759999923934,1.94839815,121370.0,121360.0,1e-08]
[1759999924171,2.05731817,121370.0,121360.0,1e-08]
[1759999924396,2.14303817,121370.0,121360.0,1e-08]
[1759999925005,2.91769433,121370.0,121360.0,1e-08]
[1759999925665,0.16481252,121350.0,121330.0,0.0004]
[1759999925869,1.3203065,121340.0,121330.0,0.00052256]
[1759999926077,1.37717432,121340.0,121330.0,0.00052256]
[1759999926310,1.37717432,121340.0,121330.0,0.0020674]
[1759999926519,0.60251816,121340.0,121330.0,0.0020674]
[1759999926757,1.37717432,121340.0,121330.0,0.0020674]
[1759999927177,1.14321432,121340.0,121330.0,0.0020674]
[1759999927383,1.1008156,121340.0,121330.0,0.0583274]
[1759999927808,1.1008156,121340.0,121330.0,0.1015674]
[1759999928028,0.24894816,121340.0,121330.0,0.1862074]
[1759999928242,1.25622354,121340.0,121330.0,0.1862074]
[1759999929095,0.56559532,121340.0,121330.0,0.1862074]
[1759999929309,1.02226354,121340.0,121330.0,0.1862074]
[1759999929715,1.14231354,121340.0,121330.0,0.0020674]
[1759999930125,1.37627354,121340.0,121330.0,0.0020674]
[1759999930553,1.48365432,121340.0,121330.0,0.0020674]
[1759999930763,1.56365112,121340.0,121330.0,0.0020674]
[1759999930973,1.79761112,121340.0,121330.0,0.0020674]
[1759999931607,1.71761432,121340.0,121330.0,0.0020674]
[1759999931860,0.70899816,121340.0,121330.0,0.0020674]
[1759999932067,1.28747024,121340.0,121330.0,0.0020674]
[1759999932470,1.05351024,121340.0,121330.0,0.0020674]
[1759999932743,1.28747024,121340.0,121330.0,0.0020674]
[1759999932977,1.05351024,121340.0,121330.0,0.0020674]
[1759999933220,1.28747024,121340.0,121330.0,0.0020674]
[1759999933427,1.21400024,121340.0,121330.0,0.0583274]
[1759999933636,0.98004024,121340.0,121330.0,0.0583274]
[1759999933840,1.28747024,121340.0,121330.0,0.0020674]
[1759999934882,1.36746704,121340.0,121330.0,0.0020674]
[1759999935821,1.13350704,121340.0,121330.0,0.0020674]
[1759999936226,1.36746704,121340.0,121330.0,0.0020674]
[1759999938205,1.28747024,121340.0,121330.0,0.0020674]
[1759999938433,1.05351024,121340.0,121330.0,0.0020674]
[1759999938651,0.73375062,121340.0,121330.0,0.0020674]
[1759999938859,1.3122227,121340.0,121330.0,0.0020674]
[1759999939477,1.0782627,121340.0,121330.0,0.0020674]
[1759999939651,1.3922195,121340.0,121330.0,0.0020674]
[1759999939799,1.1582595,121340.0,121330.0,0.0020674]
[1759999939988,1.3922195,121340.0,121330.0,0.0020674]
[1759999940403,1.1582595,121340.0,121330.0,0.0020674]
[1759999940605,0.96771062,121340.0,121330.0,0.0020674]
[1759999940853,1.3122227,121340.0,121330.0,0.0020674]
[1759999941054,0.96771062,121340.0,121330.0,0.0020674]
[1759999941452,1.3122227,121340.0,121330.0,0.0020674]
[1759999942358,0.50485328,121320.0,121310.0,0.0002]
[1759999942564,0.50486687,121310.0,121300.0,0.0004]
[1759999942781,0.50486687,121310.0,121300.0,0.00044723]
[1759999942782,1.28400101,121310.0,121300.0,0.00044723]
[1759999943350,1.05811037,121310.0,121300.0,0.00044723]
[1759999943577,1.05811037,121310.0,121300.0,1e-08]
[1759999943578,0.79359509,121310.0,121300.0,1e-08]
[1759999943790,1.31682957,121310.0,121300.0,1e-08]
[1759999944010,1.42482357,121310.0,121300.0,1e-08]
[1759999944448,1.48636491,121310.0,121300.0,1e-08]
[1759999944868,0.53503236,121300.0,121290.0,1e-08]
[1759999945072,1.4294573,121300.0,121290.0,0.00014172]
[1759999945278,1.4317673,121300.0,121290.0,0.00014172]
[1759999945488,1.5042173,121300.0,121290.0,0.00014172]
[1759999945696,1.5899373,121300.0,121290.0,0.00014172]
[1759999946107,1.5042173,121300.0,121290.0,0.00014172]
[1759999946287,1.4242205,121300.0,121290.0,0.00014172]
[1759999946689,1.1601086,121300.0,121290.0,0.00014172]
[1759999946894,1.4798286,121300.0,121290.0,0.00014172]
[1759999947122,1.3941086,121300.0,121290.0,1e-08]
[1759999947325,1.2702573,121300.0,121290.0,1e-08]
[1759999947533,1.5052573,121300.0,121290.0,1e-08]
[1759999948354,1.5042573,121300.0,121290.0,1e-08]
[1759999948559,1.52902155,121300.0,121290.0,1e-08]
[1759999948973,1.07751547,121300.0,121290.0,1e-08]
[1759999949174,1.08051547,121300.0,121290.0,1e-08]
[1759999949603,1.08451547,121300.0,121290.0,1e-08]
[1759999949809,1.17027547,121300.0,121290.0,1e-08]
[1759999950231,1.18549338,121300.0,121290.0,1e-08]
[1759999950435,0.50492125,121270.0,121260.0,0.93069789]
[1759999950638,0.92102331,121270.0,121260.0,0.93119954]
[1759999951105,0.16492125,121270.0,121260.0,1.12518954]
[1759999951319,0.85042733,121270.0,121260.0,1.12518954]
[1759999951535,0.67264733,121270.0,121260.0,1.03605954]
[1759999951749,0.61642733,121270.0,121260.0,1.03605954]
[1759999951976,0.61642733,121270.0,121260.0,1.12518954]
[1759999952748,0.61742733,121270.0,121260.0,1.12518954]
[1759999953147,0.16592125,121270.0,121260.0,1.12518954]
[1759999953735,0.61742733,121270.0,121260.0,1.12518954]
[1759999955272,0.16592125,121270.0,121260.0,1.29012439]
[1759999955495,0.16592125,121270.0,121260.0,1.35922954]
[1759999956142,0.16592125,121270.0,121260.0,1.36077572]
[1759999956472,0.16592125,121270.0,121260.0,1.12673572]
[1759999956680,0.16592125,121270.0,121260.0,1.36077572]
[1759999957457,0.16592125,121270.0,121260.0,1.12673572]
[1759999957660,0.16592125,121270.0,121260.0,1.36077572]
[1759999958453,0.16592125,121270.0,121260.0,1.12673572]
[1759999958616,0.16592125,121270.0,121260.0,1.36077572]
[1759999958818,0.16592125,121270.0,121260.0,1.12673572]
[1759999959021,0.61742733,121270.0,121260.0,1.36077572]
[1759999959652,0.61831733,121270.0,121260.0,1.03760572]
[1759999959837,0.75093733,121270.0,121260.0,0.93274572]
[1759999960309,0.66239733,121270.0,121260.0,0.99306572]
[1759999960917,0.66239733,121270.0,121260.0,1.03760572]
[1759999961543,0.16592125,121270.0,121260.0,1.12673572]
[1759999961719,0.16592125,121270.0,121260.0,1.36077572]
[1759999963127,0.61742733,121270.0,121260.0,1.36077572]
[1759999964246,0.61742733,121270.0,121260.0,1.12673572]
[1759999964437,0.61742733,121270.0,121260.0,1.36077572]
[1759999964859,0.66183733,121270.0,121260.0,1.27164572]
[1759999965639,0.66183733,121270.0,121260.0,1.03760572]
[1759999965804,0.74845733,121270.0,121260.0,0.93274572]
[1759999967037,0.74845733,121270.0,121260.0,1.16678572]
[1759999968596,0.66183733,121270.0,121260.0,1.22713572]
[1759999968797,0.66183733,121270.0,121260.0,0.99309572]
[1759999968998,0.66183733,121270.0,121260.0,1.22713572]
[1759999969557,0.74845733,121270.0,121260.0,1.16678572]
[1759999970829,0.83157939,121270.0,121260.0,1.16678572]
[1759999971569,1.2400633,121270.0,121260.0,0.93274572]
[1759999971777,1.4741033,121270.0,121260.0,0.93274572]
[1759999971990,1.49886894,121270.0,121260.0,0.93274572]
[1759999972235,1.51415349,121270.0,121260.0,0.93274572]
[1759999973372,1.39615921,121270.0,121260.0,0.25129098]
[1759999973605,1.63824132,121270.0,121260.0,0.12684876]
[1759999973835,0.53508675,121260.0,121250.0,0.0040666]
[1759999974039,1.20667024,121260.0,121250.0,0.0040666]
[1759999974244,1.53805024,121260.0,121250.0,1e-08]
[1759999974451,0.53510035,121250.0,121240.0,1e-08]
[1759999974663,1.44634304,121250.0,121240.0,1e-08]
[1759999974872,1.54654304,121250.0,121240.0,1e-08]
[1759999975094,1.62653984,121250.0,121240.0,1e-08]
[1759999975634,1.39213984,121250.0,121240.0,1e-08]
[1759999975895,1.62653984,121250.0,121240.0,1e-08]
[1759999976616,1.39213984,121250.0,121240.0,1e-08]
[1759999976822,1.62653984,121250.0,121240.0,1e-08]
[1759999977027,1.62661984,121250.0,121240.0,1e-08]
[1759999977253,1.30737984,121250.0,121240.0,0.00051557]
[1759999977427,1.62761984,121250.0,121240.0,0.00051557]
[1759999977683,1.30737984,121250.0,121240.0,0.00051557]
[1759999977869,1.62761984,121250.0,121240.0,0.00051557]
[1759999978837,0.19511395,121240.0,121230.0,0.29656161]
[1759999979037,0.95648174,121230.0,121220.0,0.01818182]
[1759999979258,1.2062738,121230.0,121220.0,0.01818182]
[1759999979460,1.4407138,121230.0,121220.0,0.01921316]
[1759999979659,1.46548799,121230.0,121220.0,0.01921316]
[1759999980289,1.47388153,121230.0,121220.0,0.01921316]
[1759999980644,1.31943833,121230.0,121220.0,0.01921316]
[1759999981094,1.55391833,121230.0,121220.0,0.01921316]
[1759999981302,1.23944153,121230.0,121220.0,0.01921316]
[1759999981516,1.13392153,121230.0,121220.0,0.01921316]
[1759999981944,0.89944153,121230.0,121220.0,0.01921316]
[1759999982158,1.13392153,121230.0,121220.0,0.01921316]
[1759999982798,1.19728489,121230.0,121220.0,0.01921316]
[1759999983006,1.04280169,121230.0,121220.0,0.01921316]
[1759999983212,0.99395679,121230.0,121220.0,0.01921316]
[1759999983428,1.22847679,121230.0,121220.0,0.01921316]
[1759999983643,1.07975679,121230.0,121220.0,0.01921316]
[1759999983859,0.96380489,121230.0,121220.0,0.01921316]
[1759999984077,1.04246799,121230.0,121220.0,0.11844316]
[1759999984281,0.63071191,121230.0,121220.0,0.01921316]
[1759999984499,0.84769799,121230.0,121220.0,0.01921316]
[1759999984715,1.08221799,121230.0,121220.0,0.01921316]